fUST/lending_fUST_20250923
["ID","MTS","AMOUNT","RATE_DAILY","PERIOD"]
[387107989,1758580256627,-151.0,0.00021918,2]
[387107990,1758580256636,-151.0,0.00021918,2]
[387107991,1758580256646,-151.0,0.00021918,2]
[387107992,1758580256659,-151.0,0.00021918,2]
[387107993,1758580256672,-151.0,0.00021918,2]
[387107994,1758580256681,-219.58476017,0.00021918,2]
[387107995,1758580256690,-1000.0,0.00021926,2]
[387107996,1758580256699,-1000.0,0.00021926,2]
[387107997,1758580256709,-1008.65777358,0.00021926,2]
[387107998,1758580256719,-1000.0,0.00021926,2]
[387107999,1758580256728,-501.02255061,0.00021926,2]
[387108000,1758580256737,-906.13525957,0.00021926,2]
[387108001,1758580256746,-1000.0,0.00021926,2]
[387108002,1758580256755,-16057.28655631,0.00021948,2]
[387108003,1758580256764,-1226.88,0.00021962,2]
[387108004,1758580256773,-153.0,0.00021994,2]
[387108005,1758580256782,-153.0,0.00021994,2]
[387108006,1758580256791,-153.0,0.00021994,2]
[387108007,1758580256800,-153.0,0.00021994,2]
[387108008,1758580256809,-153.0,0.00021994,2]
[387108009,1758580256819,-204.63,0.00022,2]
[387108010,1758580256828,-153.0,0.00022002,2]
[387108011,1758580256837,-153.0,0.00022002,2]
[387108012,1758580256846,-153.0,0.00022002,2]
[387108013,1758580256855,-153.0,0.00022002,2]
[387108014,1758580256865,-4690.11352609,0.00022044,2]
[387108015,1758580256875,-1900.0,0.00022089,2]
[387108016,1758580256884,-25694.16957968,0.0002211,3]
[387108017,1758580256894,-160.0,0.0002211,3]
[387108018,1758580256905,-417.15472785,0.0002211,3]
[387108019,1758580256915,-160.0,0.0002211,3]
[387108020,1758580256926,-1000.0,0.00022173,2]
[387108021,1758580256937,-500.0,0.00022191,8]
[387108022,1758580256947,-633.841,0.00022191,2]
[387108023,1758580256956,-173.26107977,0.00022191,2]
[387108024,1758580256965,-536.44,0.00022191,2]
[387108025,1758580256974,-6296.56,0.00022191,2]
[387108026,1758580256983,-480.0,0.00022191,2]
[387108027,1758580256992,-3417.59,0.00022191,2]
[387108028,1758580257001,-687.18,0.00022191,2]
[387108029,1758580257010,-1262.19,0.00022191,2]
[387108030,1758580257020,-868.22,0.00022191,2]
[387108031,1758580257029,-1666.86,0.00022191,2]
[387108032,1758580257038,-558.4,0.00022191,2]
[387108033,1758580257047,-480.0,0.00022191,2]
[387108034,1758580257056,-718.43,0.00022191,2]
[387108035,1758580257066,-496.78,0.00022191,2]
[387108036,1758580257076,-828.4,0.00022191,2]
[387108037,1758580257086,-480.0,0.00022191,2]
[387108038,1758580257099,-480.0,0.00022191,2]
[387108039,1758580257110,-775.4,0.00022191,2]
[387108040,1758580257119,-838.26,0.00022191,2]
[387108041,1758580257128,-500.0,0.00022191,8]
[387108042,1758580257138,-1737.25,0.00022191,2]
[387108043,1758580257147,-480.0,0.00022191,2]
[387108044,1758580257157,-480.0,0.00022191,2]
[387108045,1758580257170,-789.77,0.00022191,2]
[387108046,1758580257178,-743.13,0.00022191,2]
[387108047,1758580257188,-423.59680693,0.00022191,2]
[387108048,1758580257197,-500.58,0.00022191,2]
[387108049,1758580257206,-480.0,0.00022191,2]
[387108050,1758580257215,-480.0,0.00022191,2]
[387108051,1758580257225,-1014.46,0.00022191,2]
[387108052,1758580257234,-2362.25,0.000222,7]
[387108053,1758580257243,-1000.0,0.00022219,2]
[387108054,1758580257253,-505.6341822,0.00022219,2]
[387108055,1758580257262,-1000.0,0.00022222,2]
[387108056,1758580257271,-1000.0,0.00022222,2]
[387108057,1758580257281,-151.0,0.00022234,3]
[387108058,1758580257290,-151.0,0.000223,7]
[387108059,1758580257299,-1500.0,0.0002244,2]
[387108060,1758580257376,-1236.89195217,0.0002244,2]
[387108061,1758580257386,-1500.0,0.0002244,2]
[387108062,1758580257395,-536.44,0.00022465,2]
[387108063,1758580257404,-6296.56,0.00022465,2]
[387108064,1758580257413,-480.0,0.00022465,2]
[387108065,1758580257422,-3417.59,0.00022465,2]
[387108066,1758580257431,-687.18,0.00022465,2]
[387108067,1758580257441,-1262.19,0.00022465,2]
[387108068,1758580257450,-868.22,0.00022465,2]
[387108069,1758580257459,-1666.86,0.00022465,2]
[387108070,1758580257469,-558.4,0.00022465,2]
[387108071,1758580257477,-480.0,0.00022465,2]
[387108072,1758580257487,-718.43,0.00022465,2]
[387108073,1758580257497,-496.78,0.00022465,2]
[387108074,1758580257506,-828.4,0.00022465,2]
[387108075,1758580257515,-480.0,0.00022465,2]
[387108076,1758580257525,-480.0,0.00022465,2]
[387108077,1758580257534,-775.4,0.00022465,2]
[387108078,1758580257543,-838.26,0.00022465,2]
[387108079,1758580257552,-1737.25,0.00022465,2]
[387108080,1758580257562,-480.0,0.00022465,2]
[387108081,1758580257571,-217.1954853,0.00022465,2]
[387108082,1758580257581,-789.77,0.00022465,2]
[387108083,1758580257590,-743.13,0.00022465,2]
[387108084,1758580257600,-500.58,0.00022465,2]
[387108085,1758580257609,-480.0,0.00022465,2]
[387108086,1758580257618,-480.0,0.00022465,2]
[387108087,1758580257627,-1014.46,0.00022465,2]
[387108088,1758580257637,-1500.0,0.00022474,2]
[387108089,1758580257646,-1500.0,0.00022474,2]
[387108090,1758580257655,-500.0,0.00022474,2]
[387108091,1758580257668,-1500.0,0.00022474,2]
[387108092,1758580257677,-150.0,0.000225,2]
[387108093,1758580257686,-150.0,0.000225,10]
[387108094,1758580257695,-154.040103,0.00022619,7]
[387108095,1758580257705,-3868.4141219,0.00022641,2]
[387108096,1758580257715,-151.0,0.00022678,3]
[387108097,1758580257725,-168.0,0.00022712,2]
[387108098,1758580257735,-1500.0,0.00022721,2]
[387108099,1758580257745,-536.44,0.00022739,2]
[387108100,1758580257755,-6296.56,0.00022739,2]
[387108101,1758580257764,-480.0,0.00022739,2]
[387108102,1758580257774,-3417.59,0.00022739,2]
[387108103,1758580257783,-687.18,0.00022739,2]
[387108104,1758580257792,-1262.19,0.00022739,2]
[387108105,1758580257802,-868.22,0.00022739,2]
[387108106,1758580257816,-1666.86,0.00022739,2]
[387108107,1758580257833,-558.4,0.00022739,2]
[387108108,1758580257842,-480.0,0.00022739,2]
[387108109,1758580257851,-718.43,0.00022739,2]
[387108110,1758580257860,-496.78,0.00022739,2]
[387108111,1758580257870,-828.4,0.00022739,2]
[387108112,1758580257879,-223.79,0.00022739,2]
[387108113,1758580257889,-480.0,0.00022739,2]
[387108114,1758580257898,-775.4,0.00022739,2]
[387108115,1758580257907,-838.26,0.00022739,2]
[387108116,1758580257917,-1737.25,0.00022739,2]
[387108117,1758580257927,-789.77,0.00022739,2]
[387108118,1758580257937,-743.13,0.00022739,2]
[387108119,1758580257948,-500.58,0.00022739,2]
[387108120,1758580257958,-480.0,0.00022739,2]
[387108121,1758580257970,-480.0,0.00022739,2]
[387108122,1758580257981,-1014.46,0.00022739,2]
[387108123,1758580257992,-500.0,0.00022766,2]
[387108124,1758580258001,-1504.14783591,0.0002277,2]
[387108125,1758580258011,-500.0,0.0002277,2]
[387108126,1758580258026,-3051.64146281,0.00022776,2]
[387108127,1758580258045,-151.0,0.000228,10]
[387108128,1758580258058,-401.0,0.00022852,2]
[387108129,1758580258074,-204.63,0.00022895,2]
[387108130,1758580258092,-2000.0,0.00022988,2]
[387108131,1758580258108,-233.55588323,0.00023,3]
[387108132,1758580258124,-160.0,0.00023,3]
[387108133,1758580258139,-536.44,0.00023013,2]
[387108134,1758580258153,-6296.56,0.00023013,2]
[387108135,1758580258171,-480.0,0.00023013,2]
[387108136,1758580258184,-3417.59,0.00023013,2]
[387108137,1758580258197,-687.18,0.00023013,2]
[387108138,1758580258213,-1262.19,0.00023013,2]
[387108139,1758580258228,-868.22,0.00023013,2]
[387108140,1758580258243,-1666.86,0.00023013,2]
[387108141,1758580258260,-558.4,0.00023013,2]
[387108142,1758580258271,-480.0,0.00023013,2]
[387108143,1758580258283,-718.43,0.00023013,2]
[387108144,1758580258301,-496.78,0.00023013,2]
[387108145,1758580258314,-828.4,0.00023013,2]
[387108146,1758580258327,-480.0,0.00023013,2]
[387108147,1758580258340,-775.4,0.00023013,2]
[387108148,1758580258351,-838.26,0.00023013,2]
[387108149,1758580258364,-1737.25,0.00023013,2]
[387108150,1758580258378,-789.77,0.00023013,2]
[387108151,1758580258390,-743.13,0.00023013,2]
[387108152,1758580258403,-500.58,0.00023013,2]
[387108153,1758580258416,-480.0,0.00023013,2]
[387108154,1758580258428,-480.0,0.00023013,2]
[387108155,1758580258442,-1014.46,0.00023013,2]
[387108156,1758580258454,-500.0,0.00023022,2]
[387108157,1758580258467,-500.0,0.00023022,2]
[387108158,1758580258479,-2000.0,0.00023022,2]
[387108159,1758580258492,-4690.11352609,0.00023116,2]
[387108160,1758580258504,-151.0,0.00023123,3]
[387108161,1758580258517,-1900.0,0.00023185,2]
[387108162,1758580258529,-136810.0,0.0002322,2]
[387108163,1758580258541,-168.0,0.00023236,2]
[387108164,1758580258553,-5888.0,0.00023245,2]
[387108165,1758580258565,-150.0,0.00023273,2]
[387108166,1758580258578,-536.44,0.00023287,2]
[387108167,1758580258591,-6296.56,0.00023287,2]
[387108168,1758580258603,-3417.59,0.00023287,2]
[387108169,1758580258616,-687.18,0.00023287,2]
[387108170,1758580258628,-1262.19,0.00023287,2]
[387108171,1758580258642,-868.22,0.00023287,2]
[387108172,1758580258656,-1666.86,0.00023287,2]
[387108173,1758580258670,-558.4,0.00023287,2]
[387108174,1758580258685,-480.0,0.00023287,2]
[387108175,1758580258697,-718.43,0.00023287,2]
[387108176,1758580258711,-496.78,0.00023287,2]
[387108177,1758580258725,-828.4,0.00023287,2]
[387108178,1758580258738,-480.0,0.00023287,2]
[387108179,1758580258751,-775.4,0.00023287,2]
[387108180,1758580258768,-838.26,0.00023287,2]
[387108181,1758580258788,-1737.25,0.00023287,2]
[387108182,1758580258802,-789.77,0.00023287,2]
[387108183,1758580258815,-743.13,0.00023287,2]
[387108184,1758580258829,-500.58,0.00023287,2]
[387108185,1758580258845,-480.0,0.00023287,2]
[387108186,1758580258858,-480.0,0.00023287,2]
[387108187,1758580258872,-3197.1,0.00023287,2]
[387108188,1758580258886,-1014.46,0.00023287,2]
[387108189,1758580258899,-270.37203795,0.00023294,2]
[387108190,1758580259008,-2362.25,0.000233,7]
[387108191,1758580259018,-151.0,0.000233,8]
[387108192,1758580259028,-168.0,0.00023316,2]
[387108193,1758580259037,-863.1598625,0.00023413,2]
[387108194,1758580259047,-4168.50932198,0.00023461,2]
[387108195,1758580259056,-168.0,0.00023522,2]
[387108196,1758580259066,-2500.0,0.00023536,2]
[387108197,1758580259075,-168.0,0.00023548,2]
[387108198,1758580259085,-536.44,0.00023561,2]
[387108199,1758580259094,-6296.56,0.00023561,2]
[387108200,1758580259103,-3417.59,0.00023561,2]
[387108201,1758580259112,-687.18,0.00023561,2]
[387108202,1758580259122,-1262.19,0.00023561,2]
[387108203,1758580259131,-868.22,0.00023561,2]
[387108204,1758580259141,-1666.86,0.00023561,2]
[387108205,1758580259150,-558.4,0.00023561,2]
[387108206,1758580259159,-480.0,0.00023561,2]
[387108207,1758580259173,-718.43,0.00023561,2]
[387108208,1758580259183,-496.78,0.00023561,2]
[387108209,1758580259192,-828.4,0.00023561,2]
[387108210,1758580259201,-480.0,0.00023561,2]
[387108211,1758580259210,-775.4,0.00023561,2]
[387108212,1758580259219,-838.26,0.00023561,2]
[387108213,1758580259229,-1737.25,0.00023561,2]
[387108214,1758580259239,-789.77,0.00023561,2]
[387108215,1758580259248,-743.13,0.00023561,2]
[387108216,1758580259257,-500.58,0.00023561,2]
[387108217,1758580259266,-480.0,0.00023561,2]
[387108218,1758580259275,-480.0,0.00023561,2]
[387108219,1758580259285,-1014.46,0.00023561,2]
[387108220,1758580259296,-151.0,0.00023567,4]
[387108221,1758580259306,-2500.0,0.0002357,2]
[387108222,1758580259318,-5000.0,0.00023667,2]
[387108223,1758580259327,-978.0,0.00023676,2]
[387108224,1758580259337,-2159.0,0.00023676,2]
[387108225,1758580259349,-634.0,0.00023676,2]
[387108226,1758580259360,-410.0,0.00023676,2]
[387108227,1758580259371,-410.0,0.00023676,2]
[387108228,1758580259381,-204.63,0.0002379,2]
[387108229,1758580259391,-151.0,0.000238,6]
[387108230,1758580259402,-300.0,0.00023821,2]
[387108231,1758580259412,-536.44,0.00023835,2]
[387108232,1758580259422,-6296.56,0.00023835,2]
[387108233,1758580259431,-3417.59,0.00023835,2]
[387108234,1758580259440,-687.18,0.00023835,2]
[387108235,1758580259451,-1262.19,0.00023835,2]
[387108236,1758580259462,-868.22,0.00023835,2]
[387108237,1758580259471,-1666.86,0.00023835,2]
[387108238,1758580259481,-558.4,0.00023835,2]
[387108239,1758580259490,-480.0,0.00023835,2]
[387108240,1758580259500,-718.43,0.00023835,2]
[387108241,1758580259510,-496.78,0.00023835,2]
[387108242,1758580259520,-828.4,0.00023835,2]
[387108243,1758580259530,-480.0,0.00023835,2]
[387108244,1758580259539,-775.4,0.00023835,2]
[387108245,1758580259549,-838.26,0.00023835,2]
[387108246,1758580259558,-1737.25,0.00023835,2]
[387108247,1758580259568,-789.77,0.00023835,2]
[387108248,1758580259578,-743.13,0.00023835,2]
[387108249,1758580259587,-500.58,0.00023835,2]
[387108250,1758580259596,-480.0,0.00023835,2]
[387108251,1758580259605,-480.0,0.00023835,2]
[387108252,1758580259615,-1014.46,0.00023835,2]
[387108253,1758580259624,-151.0,0.000239,6]
[387108254,1758580259633,-2453.76,0.00023959,2]
[387108255,1758580259642,-1368.894263,0.0002396,5]
[387108256,1758580259652,-168.0,0.00023966,2]
[387108257,1758580259661,-1000.0,0.0002398,5]
[387108258,1758580259671,-160.0,0.00024,7]
[387108259,1758580259681,-417.15472785,0.00024,3]
[387108260,1758580259690,-1000.0,0.00024,5]
[387108261,1758580259699,-3051.64146281,0.00024009,2]
[387108262,1758580259708,-151.0,0.00024011,4]
[387108263,1758580259717,-1000.0,0.0002402,5]
[387108264,1758580259727,-196.77896644,0.00024027,2]
[387108265,1758580259736,-1000.0,0.0002404,5]
[387108266,1758580259745,-1000.0,0.0002406,5]
[387108267,1758580259754,-1000.0,0.0002408,5]
[387108268,1758580259764,-3000.0,0.00024084,2]
[387108269,1758580259773,-168.0,0.00024089,2]
[387108270,1758580259782,-1000.0,0.000241,5]
[387108271,1758580259792,-536.44,0.00024109,2]
[387108272,1758580259801,-6296.56,0.00024109,2]
[387108273,1758580259810,-3417.59,0.00024109,2]
[387108274,1758580259819,-687.18,0.00024109,2]
[387108275,1758580259829,-1262.19,0.00024109,2]
[387108276,1758580259839,-868.22,0.00024109,2]
[387108277,1758580259848,-1666.86,0.00024109,2]
[387108278,1758580259858,-558.4,0.00024109,2]
[387108279,1758580259867,-480.0,0.00024109,2]
[387108280,1758580259876,-718.43,0.00024109,2]
[387108281,1758580259886,-496.78,0.00024109,2]
[387108282,1758580259896,-828.4,0.00024109,2]
[387108283,1758580259905,-197.26,0.00024109,2]
[387108284,1758580259914,-775.4,0.00024109,2]
[387108285,1758580259924,-838.26,0.00024109,2]
[387108286,1758580259934,-1737.25,0.00024109,2]
[387108287,1758580259943,-789.77,0.00024109,2]
[387108288,1758580259952,-743.13,0.00024109,2]
[387108289,1758580259961,-500.58,0.00024109,2]
[387108290,1758580259971,-480.0,0.00024109,2]
[387108291,1758580259980,-591.51,0.00024109,2]
[387108292,1758580259990,-1014.46,0.00024109,2]
[387108293,1758580259999,-2710.84331519,0.00024118,2]
[387108294,1758580260009,-179.74835231,0.00024136,2]
[387108295,1758580260021,-196.77896644,0.00024164,2]
[387108296,1758580260030,-168.0,0.00024186,2]
[387108297,1758580260041,-4690.11352609,0.00024187,2]
[387108298,1758580260051,-196.77896644,0.00024274,2]
[387108299,1758580260061,-1900.0,0.00024281,2]
[387108300,1758580260071,-300.82493314,0.00024368,2]
[387108301,1758580260082,-536.44,0.00024383,2]
[387108302,1758580260092,-6296.56,0.00024383,2]
[387108303,1758580260102,-3417.59,0.00024383,2]
[387108304,1758580260111,-687.18,0.00024383,2]
[387108305,1758580260122,-1262.19,0.00024383,2]
[387108306,1758580260131,-868.22,0.00024383,2]
[387108307,1758580260141,-1666.86,0.00024383,2]
[387108308,1758580260151,-558.4,0.00024383,2]
[387108309,1758580260163,-183.5,0.00024383,2]
[387108310,1758580260174,-718.43,0.00024383,2]
[387108311,1758580260184,-496.78,0.00024383,2]
[387108312,1758580260194,-828.4,0.00024383,2]
[387108313,1758580260205,-775.4,0.00024383,2]
[387108314,1758580260215,-838.26,0.00024383,2]
[387108315,1758580260225,-1737.25,0.00024383,2]
[387108316,1758580260236,-789.77,0.00024383,2]
[387108317,1758580260245,-743.13,0.00024383,2]
[387108318,1758580260254,-500.58,0.00024383,2]
[387108319,1758580260264,-159.28,0.00024383,2]
[387108320,1758580260273,-1014.46,0.00024383,2]
[387108321,1758580260282,-196.77896644,0.00024384,2]
[387108322,1758580260292,-2362.25,0.000244,7]
[387108323,1758580260301,-151.0,0.000244,6]
[387108324,1758580260311,-168.0,0.00024419,2]
[387108325,1758580260320,-151.0,0.00024456,4]
[387108326,1758580260330,-196.77896644,0.00024493,2]
[387108327,1758580260339,-196.77896644,0.0002463,2]
[387108328,1758580260349,-3500.0,0.00024632,2]
[387108329,1758580260358,-168.0,0.00024639,2]
[387108330,1758580260368,-536.44,0.00024657,2]
[387108331,1758580260377,-6296.56,0.00024657,2]
[387108332,1758580260387,-3417.59,0.00024657,2]
[387108333,1758580260396,-687.18,0.00024657,2]
[387108334,1758580260405,-1262.19,0.00024657,2]
[387108335,1758580260415,-868.22,0.00024657,2]
[387108336,1758580260424,-1666.86,0.00024657,2]
[387108337,1758580260433,-558.4,0.00024657,2]
[387108338,1758580260442,-718.43,0.00024657,2]
[387108339,1758580260452,-496.78,0.00024657,2]
[387108340,1758580260461,-828.4,0.00024657,2]
[387108341,1758580260471,-775.4,0.00024657,2]
[387108342,1758580260480,-838.26,0.00024657,2]
[387108343,1758580260489,-1737.25,0.00024657,2]
[387108344,1758580260500,-789.77,0.00024657,2]
[387108345,1758580260509,-743.13,0.00024657,2]
[387108346,1758580260519,-500.58,0.00024657,2]
[387108347,1758580260529,-1014.46,0.00024657,2]
[387108348,1758580260539,-150.0,0.00024658,2]
[387108349,1758580260548,-500.0,0.00024658,2]
[387108350,1758580260558,-204.63,0.00024685,2]
[387108351,1758580260568,-270.37203795,0.00024735,2]
[387108352,1758580260577,-196.77896644,0.0002474,30]
[387108353,1758580260587,-19760.90779775,0.000248,2]
[387108354,1758580260596,-16057.28655631,0.00024818,2]
[387108355,1758580260606,-196.77896644,0.00024849,30]
[387108356,1758580260615,-168.0,0.00024851,2]
[387108357,1758580260625,-192.069386,0.0002487,2]
[387108358,1758580260634,-151.0,0.000249,5]
[387108359,1758580260644,-76968.66905476,0.000249,2]
[387108360,1758580260847,-151.0,0.00019178,2]
[387108361,1758580260858,-7893.45010541,0.000249,2]
[387108362,1758580260870,-26651.10166618,0.000249,2]
[387108363,1758580260882,-2139.58543488,0.000249,2]
[387108364,1758580261266,-418.492027,0.00019178,2]
[387108365,1758580261275,-394.045526,0.00019178,2]
[387108366,1758580261285,-151.0,0.00019178,2]
[387108367,1758580261294,-418.492027,0.00019178,2]
[387108368,1758580261303,-293.97042001,0.00019178,2]
[387108369,1758580310734,161.6141577,0.00017,2]
[387108370,1758580680021,254.36,0.00015485,2]
[387108371,1758580789755,3785.28603517,0.00018,2]
[387108372,1758580789779,3129.71396483,0.00018,2]
[387108373,1758580790218,-1000.0,0.0001828,2]
[387108374,1758580790249,-212.05007369,0.00018603,2]
[387108415,1758581431984,-787.570666,0.00018661,2]
[387108417,1758581431994,-10000.0,0.00018978,2]
[387108419,1758581432003,-162.22322277,0.00019078,2]
[387108421,1758581432013,-192.069386,0.00019141,2]
[387108423,1758581432022,-481.40040292,0.00019178,2]
[387108424,1758581432031,-480.0,0.00019178,2]
[387108426,1758581432041,-480.0,0.00019178,2]
[387108428,1758581432056,-480.0,0.00019178,2]
[387108430,1758581432066,-480.0,0.00019178,2]
[387108432,1758581432075,-486.49497809,0.00019178,2]
[387108434,1758581432084,-239.14300425,0.00019178,2]
[387108436,1758581432094,-483.09498378,0.00019178,2]
[387108437,1758581432103,-480.0,0.00019178,2]
[387108439,1758581432113,-480.0,0.00019178,2]
[387108441,1758581432123,-480.0,0.00019178,2]
[387108443,1758581432133,-54.66593804,0.00019178,2]
[387109408,1758581442091,-55.09846439,0.00019178,2]
[387109498,1758581442935,-370.23559757,0.00019178,2]
[387109500,1758581442945,-110.26438243,0.00019178,2]
[387110026,1758582393846,300.0,0.000272,120]
[387110028,1758582483598,178.07,0.00015485,2]
[387110090,1758582632430,-393.785333,0.00018975,2]
[387110092,1758582632440,-369.73561757,0.00019178,2]
[387110094,1758582632451,-480.0,0.00019178,2]
[387110096,1758582632460,-480.0,0.00019178,2]
[387110098,1758582632470,-481.18701857,0.00019178,2]
[387110099,1758582632480,-1003.73945882,0.00019178,2]
[387110100,1758582632489,-480.90597836,0.00019178,2]
[387110101,1758582632501,-481.70908826,0.00019178,2]
[387110102,1758582632510,-480.0,0.00019178,2]
[387110103,1758582632519,-480.0,0.00019178,2]
[387110104,1758582632530,-787.07,0.00019178,2]
[387110106,1758582632539,-480.0,0.00019178,2]
[387110108,1758582632548,-480.0,0.00019178,2]
[387110110,1758582632557,-480.0,0.0001945,2]
[387110112,1758582632567,-480.0,0.0001945,2]
[387110114,1758582632576,-480.0,0.0001945,2]
[387110116,1758582632586,-480.0,0.0001945,2]
[387110118,1758582632595,-480.0,0.0001945,2]
[387110120,1758582632604,-480.0,0.0001945,2]
[387110122,1758582632614,-480.0,0.0001945,2]
[387110124,1758582632623,-480.0,0.0001945,2]
[387110126,1758582632632,-480.0,0.0001945,2]
[387110128,1758582632642,-480.0,0.0001945,2]
[387110130,1758582632651,-1355.82132958,0.00019451,2]
[387110132,1758582632660,-480.0,0.00019451,2]
[387110134,1758582632669,-480.0,0.00019451,2]
[387110136,1758582632679,-480.0,0.00019451,2]
[387110138,1758582632689,-202.10004526,0.00019451,2]
[387110140,1758582632698,-480.0,0.00019451,2]
[387110142,1758582632707,-480.0,0.00019451,2]
[387110144,1758582632717,-480.0,0.00019451,2]
[387110146,1758582632726,-480.0,0.00019451,2]
[387110148,1758582632735,-480.0,0.00019451,2]
[387110150,1758582632745,-480.0,0.00019451,2]
[387110152,1758582632754,-480.0,0.00019451,2]
[387110154,1758582632764,-480.0,0.00019451,2]
[387110156,1758582632773,-480.0,0.00019451,2]
[387110158,1758582632783,-480.0,0.00019451,2]
[387110160,1758582632796,-480.0,0.00019451,2]
[387110162,1758582632818,-787.07,0.00019452,2]
[387110164,1758582632831,-480.0,0.00019452,2]
[387110166,1758582632841,-480.0,0.00019452,2]
[387110168,1758582632850,-1385.95648875,0.00019633,2]
[387110170,1758582632861,-480.0,0.00019724,2]
[387110172,1758582632871,-480.0,0.00019724,2]
[387110174,1758582632880,-480.0,0.00019724,2]
[387110176,1758582632890,-480.0,0.00019724,2]
[387110178,1758582632900,-480.0,0.00019724,2]
[387110180,1758582632909,-480.0,0.00019724,2]
[387110182,1758582632921,-480.0,0.00019724,2]
[387110184,1758582632930,-480.0,0.00019724,2]
[387110186,1758582632940,-480.0,0.00019724,2]
[387110188,1758582632950,-500.0,0.00019724,2]
[387110190,1758582632959,-170.86461639,0.00019724,2]
[387110192,1758582632968,-500.0,0.00019724,2]
[387110194,1758582632978,-500.0,0.00019724,2]
[387110196,1758582632988,-480.0,0.00019725,2]
[387110199,1758582632997,-480.0,0.00019725,2]
[387110201,1758582633007,-480.0,0.00019725,2]
[387110203,1758582633016,-480.0,0.00019725,2]
[387110205,1758582633025,-480.0,0.00019725,2]
[387110207,1758582633034,-480.0,0.00019725,2]
[387110209,1758582633043,-787.07,0.00019726,2]
[387110211,1758582633053,-480.0,0.00019726,2]
[387110213,1758582633062,-541.9,0.00019726,2]
[387110215,1758582633071,-327.39020075,0.00019729,2]
[387110217,1758582633081,-500.0,0.00019782,2]
[387110219,1758582633090,-500.0,0.00019782,2]
[387110221,1758582633100,-3861.22658718,0.000199,2]
[387110223,1758582633109,-480.0,0.00019998,2]
[387110225,1758582633118,-480.0,0.00019998,2]
[387110227,1758582633127,-530.55,0.00019998,2]
[387110229,1758582633136,-480.0,0.00019998,2]
[387110231,1758582633146,-480.0,0.00019998,2]
[387110233,1758582633155,-264.21669187,0.00019998,2]
[387111366,1758582644709,-480.0,0.00019451,2]
[387111368,1758582644718,-480.0,0.00019451,2]
[387111370,1758582644728,-480.0,0.00019451,2]
[387111372,1758582644737,-480.0,0.00019451,2]
[387111374,1758582644747,-480.0,0.00019451,2]
[387111376,1758582644757,-688.69,0.00019451,2]
[387111377,1758582644767,-480.0,0.00019451,2]
[387111379,1758582644776,-500.0,0.00019724,2]
[387111381,1758582644785,-304.32411504,0.00019724,2]
[387111383,1758582644796,-688.69,0.00019725,2]
[387111385,1758582644805,-215.78330813,0.00019998,2]
[387111387,1758582644815,-480.0,0.00019998,2]
[387111389,1758582644824,-480.0,0.00019998,2]
[387111390,1758582644834,-480.0,0.00019998,2]
[387111392,1758582644843,-480.0,0.00019999,2]
[387111394,1758582644852,-480.0,0.00019999,2]
[387111396,1758582644861,-480.0,0.00019999,2]
[387111398,1758582644870,-403.28493539,0.00019999,2]